[Event "Late-Titled-Tuesday-Blitz-April-16-2024"]
[Site "Chess.com"]
[Date "2024.04.16"]
[Round "1"]
[White "ekurtz"]
[Black "Vincefm"]
[Result "0-1"]
[WhiteElo "2597"]
[BlackElo "2402"]
[TimeControl "180+1"]
[EndTime "14:07:49 PDT"]
[Termination "Vincefm won by resignation"]

1. Nf3 {[%clk 0:03:00.9]} 1... Nf6 {[%clk 0:02:59.6]} 2. c4 {[%clk 0:03:00.3]}
2... e6 {[%clk 0:02:59]} 3. g3 {[%clk 0:03:00.4]} 3... d5 {[%clk 0:02:58.9]} 4.
Bg2 {[%clk 0:03:01.1]} 4... Be7 {[%clk 0:02:59.5]} 5. O-O {[%clk 0:03:01.4]}
5... O-O {[%clk 0:03:00.1]} 6. b3 {[%clk 0:03:01.7]} 6... b6 {[%clk 0:03:00.1]}
7. Bb2 {[%clk 0:03:01.8]} 7... Bb7 {[%clk 0:03:00.7]} 8. e3 {[%clk 0:03:02.4]}
8... Nbd7 {[%clk 0:02:58.6]} 9. d4 {[%clk 0:02:43.9]} 9... Re8 {[%clk
0:02:50.9]} 10. Qe2 {[%clk 0:02:41.6]} 10... Bd6 {[%clk 0:02:50.6]} 11. Rd1
{[%clk 0:02:39.9]} 11... Qe7 {[%clk 0:02:50]} 12. Nc3 {[%clk 0:02:28.6]} 12...
a6 {[%clk 0:02:48.7]} 13. a3 {[%clk 0:02:28.1]} 13... Rac8 {[%clk 0:02:09.1]}
14. h3 {[%clk 0:02:26.1]} 14... Ne4 {[%clk 0:02:08]} 15. Nxe4 {[%clk 0:02:23.6]}
15... dxe4 {[%clk 0:02:08.9]} 16. Nd2 {[%clk 0:02:23.9]} 16... f5 {[%clk
0:02:08.3]} 17. b4 {[%clk 0:02:21.5]} 17... c5 {[%clk 0:02:02.2]} 18. bxc5
{[%clk 0:02:08.5]} 18... bxc5 {[%clk 0:02:01.2]} 19. Nb3 {[%clk 0:02:09.1]}
19... cxd4 {[%clk 0:01:58.4]} 20. exd4 {[%clk 0:02:07.6]} 20... e5 {[%clk
0:01:32]} 21. d5 {[%clk 0:01:42]} 21... Nc5 {[%clk 0:01:26.5]} 22. Na5 {[%clk
0:01:40.6]} 22... Ba8 {[%clk 0:00:53.8]} 23. Bc3 {[%clk 0:01:39.6]} 23... Nd3
{[%clk 0:00:53.8]} 24. a4 {[%clk 0:01:20.2]} 24... Bc5 {[%clk 0:00:50.1]} 25.
Rf1 {[%clk 0:01:16.8]} 25... Bd4 {[%clk 0:00:31.8]} 26. Qd2 {[%clk 0:01:10.2]}
26... Qa7 {[%clk 0:00:21.7]} 27. d6 {[%clk 0:00:50.9]} 27... Nxf2 {[%clk
0:00:16.6]} 28. Bxd4 {[%clk 0:00:48.4]} 28... exd4 {[%clk 0:00:16.9]} 29. Qxf2
{[%clk 0:00:47.1]} 29... e3 {[%clk 0:00:16.3]} 30. Qe2 {[%clk 0:00:41.9]} 30...
Bxg2 {[%clk 0:00:16.4]} 31. Kxg2 {[%clk 0:00:41]} 31... Rcd8 {[%clk 0:00:13.9]}
32. Rxf5 {[%clk 0:00:38.1]} 32... Rxd6 {[%clk 0:00:13.4]} 33. Raf1 {[%clk
0:00:37.4]} 33... d3 {[%clk 0:00:13.2]} 34. Qf3 {[%clk 0:00:34.7]} 34... Qa8
{[%clk 0:00:09.1]} 35. Qxa8 {[%clk 0:00:33]} 35... Rxa8 {[%clk 0:00:10]} 36. c5
{[%clk 0:00:33.1]} 36... e2 {[%clk 0:00:07.6]} 37. cxd6 {[%clk 0:00:32.3]} 37...
d2 {[%clk 0:00:08.2]} 38. Rd5 {[%clk 0:00:27.5]} 38... e1=Q {[%clk 0:00:07.2]}
39. Rxd2 {[%clk 0:00:19.6]} 39... Qxd2+ {[%clk 0:00:07.1]} 40. Rf2 {[%clk
0:00:19.7]} 40... Qxd6 {[%clk 0:00:07.8]} 41. Kh2 {[%clk 0:00:17.4]} 41... Qc5
{[%clk 0:00:06.6]} 42. Rb2 {[%clk 0:00:15.4]} 42... Qxa5 {[%clk 0:00:06.7]} 43.
h4 {[%clk 0:00:16]} 43... Qc3 {[%clk 0:00:06.8]} 44. Rf2 {[%clk 0:00:15.7]}
44... Re8 {[%clk 0:00:06.8]} 45. a5 {[%clk 0:00:15.5]} 45... Qc6 {[%clk
0:00:06.9]} 46. Kh3 {[%clk 0:00:15.3]} 46... Qc5 {[%clk 0:00:07.3]} 47. Rf4
{[%clk 0:00:14.8]} 47... Qxa5 {[%clk 0:00:07.4]} 48. h5 {[%clk 0:00:15.4]} 48...
Qxh5+ {[%clk 0:00:06.8]} 49. Kg2 {[%clk 0:00:15.7]} 49... Re2+ {[%clk
0:00:07.5]} 50. Kf1 {[%clk 0:00:16.2]} 50... Re8 {[%clk 0:00:05.4]} 51. Kg2
{[%clk 0:00:16.3]} 51... Qd5+ {[%clk 0:00:05.6]} 52. Kh2 {[%clk 0:00:16.7]}
52... Re2+ {[%clk 0:00:04.7]} 53. Kh3 {[%clk 0:00:17.4]} 53... Qd7+ {[%clk
0:00:04.5]} 54. g4 {[%clk 0:00:16.6]} 54... Re3+ {[%clk 0:00:04.9]} 55. Kh4
{[%clk 0:00:17]} 55... Qe7+ {[%clk 0:00:05.4]} 56. g5 {[%clk 0:00:17.4]} 56...
Re4 {[%clk 0:00:05.8]} 57. Rxe4 {[%clk 0:00:17.6]} 57... Qxe4+ {[%clk
0:00:06.7]} 58. Kg3 {[%clk 0:00:18.4]} 58... Qf5 {[%clk 0:00:06.6]} 0-1

[Event "Late-Titled-Tuesday-Blitz-April-16-2024"]
[Site "Chess.com"]
[Date "2024.04.16"]
[Round "1"]
[White "KChor05"]
[Black "carlsenCamacho"]
[Result "1-0"]
[WhiteElo "2601"]
[BlackElo "2282"]
[TimeControl "180+1"]
[EndTime "14:07:50 PDT"]
[Termination "KChor05 won by resignation"]

1. e4 {[%clk 0:02:56]} 1... e5 {[%clk 0:02:57.1]} 2. Nf3 {[%clk 0:02:55.7]} 2...
Nc6 {[%clk 0:02:55.1]} 3. d4 {[%clk 0:02:53.9]} 3... exd4 {[%clk 0:02:54.8]} 4.
Bc4 {[%clk 0:02:54.3]} 4... Bc5 {[%clk 0:02:54.5]} 5. Ng5 {[%clk 0:02:53.5]}
5... Nh6 {[%clk 0:02:54.3]} 6. Nxf7 {[%clk 0:02:53.6]} 6... Nxf7 {[%clk
0:02:55.2]} 7. Bxf7+ {[%clk 0:02:54.2]} 7... Kxf7 {[%clk 0:02:56.1]} 8. Qh5+
{[%clk 0:02:51.3]} 8... g6 {[%clk 0:02:56.4]} 9. Qxc5 {[%clk 0:02:50.2]} 9... d6
{[%clk 0:02:57.1]} 10. Qb5 {[%clk 0:02:39.2]} 10... Re8 {[%clk 0:02:55.6]} 11.
O-O {[%clk 0:02:35.6]} 11... Rxe4 {[%clk 0:02:47.6]} 12. c3 {[%clk 0:02:35.8]}
12... Re5 {[%clk 0:02:45.6]} 13. Qb3+ {[%clk 0:02:32.5]} 13... Be6 {[%clk
0:02:45.5]} 14. Qxb7 {[%clk 0:02:32.1]} 14... Qe8 {[%clk 0:02:25.1]} 15. Qxc7+
{[%clk 0:02:27.6]} 15... Kg8 {[%clk 0:02:19.6]} 16. Qxd6 {[%clk 0:02:23.3]}
16... Rd8 {[%clk 0:02:14.7]} 17. Qa3 {[%clk 0:02:01.4]} 17... Bc4 {[%clk
0:02:12.9]} 18. Bf4 {[%clk 0:01:59.7]} 18... Re1 {[%clk 0:02:09.1]} 19. Nd2
{[%clk 0:01:57.5]} 19... Bxf1 {[%clk 0:02:03.4]} 20. Rxe1 {[%clk 0:01:54.5]}
20... Qxe1 {[%clk 0:02:02.6]} 21. Nxf1 {[%clk 0:01:55]} 21... d3 {[%clk
0:01:54.6]} 22. Qb3+ {[%clk 0:01:50.9]} 22... Kg7 {[%clk 0:01:48.3]} 23. Qb7+
{[%clk 0:01:48.9]} 23... Ne7 {[%clk 0:01:47.7]} 24. Be3 {[%clk 0:01:43.5]} 24...
Kf7 {[%clk 0:01:39.4]} 25. Qf3+ {[%clk 0:01:29.4]} 25... Nf5 {[%clk 0:01:38.2]}
26. Qb7+ {[%clk 0:01:29.3]} 26... Ne7 {[%clk 0:01:35.5]} 27. Qb3+ {[%clk
0:01:20.9]} 27... Ke8 {[%clk 0:01:33]} 28. Qb5+ {[%clk 0:01:15.5]} 28... Rd7
{[%clk 0:01:25]} 29. g3 {[%clk 0:01:11.6]} 29... Nf5 {[%clk 0:01:18.7]} 30. Qe5+
{[%clk 0:00:56.5]} 30... Re7 {[%clk 0:01:18.5]} 31. Qh8+ {[%clk 0:00:53.7]}
31... Kd7 {[%clk 0:01:17.5]} 32. Bg5 {[%clk 0:00:53.8]} 32... Rf7 {[%clk
0:00:58.6]} 33. Qd8+ {[%clk 0:00:53.2]} 33... Kc6 {[%clk 0:00:57]} 34. Qxd3
{[%clk 0:00:51.6]} 34... Nd6 {[%clk 0:00:53.6]} 35. Be3 {[%clk 0:00:50.1]} 35...
Rf5 {[%clk 0:00:42]} 36. Bxa7 {[%clk 0:00:47.7]} 36... h5 {[%clk 0:00:32.7]} 37.
Qa6+ {[%clk 0:00:46.1]} 37... Kd7 {[%clk 0:00:32.4]} 38. Be3 {[%clk 0:00:45.6]}
38... h4 {[%clk 0:00:29.9]} 39. Kg2 {[%clk 0:00:41.6]} 39... h3+ {[%clk
0:00:28.8]} 40. Kxh3 {[%clk 0:00:39.4]} 40... Rb5 {[%clk 0:00:23.4]} 41. Nd2
{[%clk 0:00:31.9]} 41... Rxb2 {[%clk 0:00:23.6]} 42. Qa4+ {[%clk 0:00:29.4]}
42... Ke6 {[%clk 0:00:16.2]} 43. Qd4 {[%clk 0:00:22]} 43... Rb5 {[%clk 0:00:11]}
44. Kg2 {[%clk 0:00:21.1]} 44... Rd5 {[%clk 0:00:09.6]} 45. Qg4+ {[%clk
0:00:20.7]} 45... Rf5 {[%clk 0:00:08.8]} 46. Nf3 {[%clk 0:00:20.9]} 46... Kf6
{[%clk 0:00:05.9]} 47. Nxe1 {[%clk 0:00:20.9]} 47... Nf7 {[%clk 0:00:04.2]} 48.
Bd4+ {[%clk 0:00:21.8]} 48... Ke6 {[%clk 0:00:03.9]} 49. Qxg6+ {[%clk
0:00:22.5]} 1-0

[Event "Late-Titled-Tuesday-Blitz-April-16-2024"]
[Site "Chess.com"]
[Date "2024.04.16"]
[Round "1"]
[White "dasatcu90"]
[Black "2Coaches1Profile"]
[Result "0-1"]
[WhiteElo "2172"]
[BlackElo "2556"]
[TimeControl "180+1"]
[EndTime "14:07:54 PDT"]
[Termination "2Coaches1Profile won on time"]

1. d4 {[%clk 0:03:00.9]} 1... Nf6 {[%clk 0:02:58.6]} 2. Nf3 {[%clk 0:03:01]}
2... c5 {[%clk 0:02:56.9]} 3. e3 {[%clk 0:03:00.8]} 3... g6 {[%clk 0:02:56.9]}
4. dxc5 {[%clk 0:03:00]} 4... Bg7 {[%clk 0:02:57.8]} 5. c3 {[%clk 0:02:57.9]}
5... O-O {[%clk 0:02:57.7]} 6. b4 {[%clk 0:02:57.6]} 6... a5 {[%clk 0:02:58.2]}
7. Bb2 {[%clk 0:02:57.2]} 7... b6 {[%clk 0:02:47.7]} 8. cxb6 {[%clk 0:02:55]}
8... Qxb6 {[%clk 0:02:46.9]} 9. a3 {[%clk 0:02:52.6]} 9... Ne4 {[%clk
0:02:32.9]} 10. Bd3 {[%clk 0:02:42.9]} 10... Bb7 {[%clk 0:02:31.6]} 11. O-O
{[%clk 0:02:41.7]} 11... d5 {[%clk 0:02:08.9]} 12. Bxe4 {[%clk 0:02:27.3]} 12...
dxe4 {[%clk 0:02:07.4]} 13. Nd4 {[%clk 0:02:28.1]} 13... Nd7 {[%clk 0:01:50.4]}
14. Nd2 {[%clk 0:02:25.7]} 14... Ne5 {[%clk 0:01:46.4]} 15. Qb3 {[%clk
0:02:07.3]} 15... a4 {[%clk 0:01:30.8]} 16. Qc2 {[%clk 0:01:47.3]} 16... Ba6
{[%clk 0:01:19.3]} 17. Qxe4 {[%clk 0:01:30.5]} 17... Bd3 {[%clk 0:01:05.6]} 18.
Qh4 {[%clk 0:01:24.5]} 18... Bf6 {[%clk 0:00:59.5]} 19. Qh3 {[%clk 0:01:13.8]}
19... Bxf1 {[%clk 0:00:57.5]} 20. Rxf1 {[%clk 0:01:12.8]} 20... Rac8 {[%clk
0:00:53.6]} 21. Ne4 {[%clk 0:01:07.3]} 21... Bg7 {[%clk 0:00:46.7]} 22. Ng5
{[%clk 0:00:55.4]} 22... h6 {[%clk 0:00:44]} 23. Ngf3 {[%clk 0:00:56.1]} 23...
Nd3 {[%clk 0:00:38.1]} 24. Ba1 {[%clk 0:00:53.3]} 24... e5 {[%clk 0:00:37.5]}
25. Ne2 {[%clk 0:00:43.4]} 25... f5 {[%clk 0:00:30.3]} 26. Nc1 {[%clk 0:00:23]}
26... Rfd8 {[%clk 0:00:20.6]} 27. Nxd3 {[%clk 0:00:21.9]} 27... Rxd3 {[%clk
0:00:21.5]} 28. c4 {[%clk 0:00:15.8]} 28... Rxc4 {[%clk 0:00:17.5]} 29. Bxe5
{[%clk 0:00:15.7]} 29... Rd5 {[%clk 0:00:13]} 30. Bxg7 {[%clk 0:00:15.6]} 30...
Kxg7 {[%clk 0:00:13.9]} 31. Qg3 {[%clk 0:00:15.3]} 31... Qc7 {[%clk 0:00:13]}
32. Qxc7+ {[%clk 0:00:11.1]} 32... Rxc7 {[%clk 0:00:13.9]} 33. Nd4 {[%clk
0:00:10.2]} 33... Rc3 {[%clk 0:00:12.6]} 34. b5 {[%clk 0:00:07.4]} 34... Rxa3
{[%clk 0:00:11.4]} 35. Rb1 {[%clk 0:00:08.1]} 35... Rxd4 {[%clk 0:00:09.2]} 36.
exd4 {[%clk 0:00:07.9]} 36... Rb3 {[%clk 0:00:09.9]} 37. Ra1 {[%clk 0:00:07.2]}
37... Rxb5 {[%clk 0:00:10.1]} 38. g3 {[%clk 0:00:07.7]} 38... Rb4 {[%clk
0:00:10.7]} 39. Kf1 {[%clk 0:00:07.7]} 39... Rxd4 {[%clk 0:00:09.7]} 40. Ke2
{[%clk 0:00:08.6]} 40... Kf6 {[%clk 0:00:09.7]} 41. Ke3 {[%clk 0:00:09.2]} 41...
Ke5 {[%clk 0:00:09.2]} 42. f4+ {[%clk 0:00:08.4]} 42... Kd5 {[%clk 0:00:08.7]}
43. Rc1 {[%clk 0:00:07.9]} 43... Rb4 {[%clk 0:00:08]} 44. Rc8 {[%clk 0:00:07.2]}
44... a3 {[%clk 0:00:07.6]} 45. Ra8 {[%clk 0:00:07.2]} 45... Rb3+ {[%clk
0:00:07.4]} 46. Kf2 {[%clk 0:00:07.3]} 46... Kd4 {[%clk 0:00:06.8]} 47. Ra6
{[%clk 0:00:05]} 47... Kc3 {[%clk 0:00:04.4]} 48. Rxg6 {[%clk 0:00:04.3]} 48...
a2 {[%clk 0:00:04.8]} 49. Ra6 {[%clk 0:00:04.2]} 49... Kb2 {[%clk 0:00:05.3]}
0-1

[Event "Late-Titled-Tuesday-Blitz-April-16-2024"]
[Site "Chess.com"]
[Date "2024.04.16"]
[Round "1"]
[White "LiemLe"]
[Black "Chess_Star1234"]
[Result "1-0"]
[WhiteElo "3039"]
[BlackElo "2524"]
[TimeControl "180+1"]
[EndTime "14:07:58 PDT"]
[Termination "LiemLe won by checkmate"]

1. Nf3 {[%clk 0:03:00.9]} 1... d5 {[%clk 0:02:59.5]} 2. e3 {[%clk 0:03:00.5]}
2... Nf6 {[%clk 0:02:54.6]} 3. c4 {[%clk 0:03:00.2]} 3... c6 {[%clk 0:02:53.9]}
4. Nc3 {[%clk 0:02:58.2]} 4... Bg4 {[%clk 0:02:54]} 5. cxd5 {[%clk 0:02:48.8]}
5... cxd5 {[%clk 0:02:46.8]} 6. Qb3 {[%clk 0:02:48.1]} 6... Bc8 {[%clk
0:02:47.1]} 7. Bb5+ {[%clk 0:02:34.6]} 7... Nc6 {[%clk 0:02:43.9]} 8. Ne5 {[%clk
0:02:34.4]} 8... Bd7 {[%clk 0:02:43.3]} 9. d4 {[%clk 0:02:30.6]} 9... e6 {[%clk
0:02:40.7]} 10. Bd2 {[%clk 0:02:30.1]} 10... Bd6 {[%clk 0:02:34.2]} 11. Bxc6
{[%clk 0:02:25.8]} 11... Bxc6 {[%clk 0:02:32.8]} 12. Nxc6 {[%clk 0:02:25]} 12...
bxc6 {[%clk 0:02:33.7]} 13. O-O {[%clk 0:02:14.4]} 13... O-O {[%clk 0:02:16.7]}
14. Rfc1 {[%clk 0:02:12.5]} 14... c5 {[%clk 0:02:14.2]} 15. dxc5 {[%clk
0:02:09.1]} 15... Bxc5 {[%clk 0:02:15.1]} 16. Nxd5 {[%clk 0:02:08.3]} 16... Nxd5
{[%clk 0:01:48.8]} 17. Rxc5 {[%clk 0:02:07.7]} 17... Rb8 {[%clk 0:01:49.5]} 18.
Qa3 {[%clk 0:01:59.5]} 18... Qb6 {[%clk 0:01:47.7]} 19. b3 {[%clk 0:01:58.5]}
19... Rfc8 {[%clk 0:01:45.8]} 20. Rac1 {[%clk 0:01:58.3]} 20... Rxc5 {[%clk
0:01:45.8]} 21. Rxc5 {[%clk 0:01:53.8]} 21... h6 {[%clk 0:01:45.2]} 22. h3
{[%clk 0:01:53.8]} 22... Kh7 {[%clk 0:01:35.6]} 23. Qc1 {[%clk 0:01:49.4]} 23...
Kg8 {[%clk 0:01:27.1]} 24. Qc4 {[%clk 0:01:47.4]} 24... Qb7 {[%clk 0:01:09.4]}
25. e4 {[%clk 0:01:42.4]} 25... Nb6 {[%clk 0:01:00.5]} 26. Qd4 {[%clk
0:01:42.7]} 26... Qe7 {[%clk 0:00:57.1]} 27. Qc3 {[%clk 0:01:33.2]} 27... Qd8
{[%clk 0:00:41.9]} 28. Bf4 {[%clk 0:01:26.2]} 28... Rc8 {[%clk 0:00:41.4]} 29.
Bc7 {[%clk 0:01:22.4]} 29... Qd1+ {[%clk 0:00:37.8]} 30. Kh2 {[%clk 0:01:22.9]}
30... Nd7 {[%clk 0:00:38.2]} 31. Rc4 {[%clk 0:01:23]} 31... Nf6 {[%clk
0:00:36.4]} 32. Qe3 {[%clk 0:01:17.6]} 32... Qd7 {[%clk 0:00:32.3]} 33. Be5
{[%clk 0:01:11.9]} 33... Rxc4 {[%clk 0:00:24]} 34. bxc4 {[%clk 0:01:12.8]} 34...
Qa4 {[%clk 0:00:23.3]} 35. Bxf6 {[%clk 0:00:47.4]} 35... gxf6 {[%clk 0:00:22.9]}
36. Qb3 {[%clk 0:00:47.6]} 36... Qc6 {[%clk 0:00:21]} 37. Qb8+ {[%clk
0:00:27.7]} 37... Kg7 {[%clk 0:00:20.8]} 38. Qxa7 {[%clk 0:00:28.6]} 38... Qxe4
{[%clk 0:00:21]} 39. Qc5 {[%clk 0:00:25.7]} 39... Qf4+ {[%clk 0:00:19.7]} 40. g3
{[%clk 0:00:26.2]} 40... Qd2 {[%clk 0:00:17.6]} 41. a4 {[%clk 0:00:26.4]} 41...
Qa2 {[%clk 0:00:16.7]} 42. a5 {[%clk 0:00:26.6]} 42... Kg8 {[%clk 0:00:13.1]}
43. Kg2 {[%clk 0:00:24.3]} 43... Kg7 {[%clk 0:00:12.1]} 44. Qb5 {[%clk
0:00:19.8]} 44... Qc2 {[%clk 0:00:09.8]} 45. Qc6 {[%clk 0:00:19.9]} 45... f5
{[%clk 0:00:04.9]} 46. a6 {[%clk 0:00:20.3]} 46... f4 {[%clk 0:00:05.1]} 47. a7
{[%clk 0:00:15]} 47... fxg3 {[%clk 0:00:05.1]} 48. Qf3 {[%clk 0:00:15.6]} 48...
gxf2 {[%clk 0:00:02.5]} 49. a8=Q {[%clk 0:00:16]} 49... f1=Q+ {[%clk 0:00:02.7]}
50. Kxf1 {[%clk 0:00:16.6]} 50... Qxc4+ {[%clk 0:00:02.2]} 51. Kg1 {[%clk
0:00:16.5]} 51... Qc1+ {[%clk 0:00:02.6]} 52. Kh2 {[%clk 0:00:16.6]} 52... Qd2+
{[%clk 0:00:03.4]} 53. Qg2+ {[%clk 0:00:16.9]} 53... Qxg2+ {[%clk 0:00:03.5]}
54. Qxg2+ {[%clk 0:00:17.8]} 54... Kf6 {[%clk 0:00:04.1]} 55. Qe4 {[%clk
0:00:18.2]} 55... Kg7 {[%clk 0:00:04.4]} 56. Qh4 {[%clk 0:00:18.5]} 56... f6
{[%clk 0:00:04.4]} 57. Kg3 {[%clk 0:00:19.4]} 57... Kg6 {[%clk 0:00:04.5]} 58.
Kg4 {[%clk 0:00:19.4]} 58... f5+ {[%clk 0:00:04.9]} 59. Kf4 {[%clk 0:00:20]}
59... Kg7 {[%clk 0:00:04.3]} 60. Ke5 {[%clk 0:00:20.9]} 60... Kg6 {[%clk
0:00:04.1]} 61. Kxe6 {[%clk 0:00:20.6]} 61... f4 {[%clk 0:00:04.2]} 62. Qg4+
{[%clk 0:00:21]} 62... Kh7 {[%clk 0:00:04]} 63. Kf7 {[%clk 0:00:21.9]} 63... h5
{[%clk 0:00:04.1]} 64. Qg7# {[%clk 0:00:22.8]} 1-0

[Event "Late-Titled-Tuesday-Blitz-April-16-2024"]
[Site "Chess.com"]
[Date "2024.04.16"]
[Round "1"]
[White "Alexei_Gubajdullin"]
[Black "KorolDimitriy75"]
[Result "1-0"]
[WhiteElo "2619"]
[BlackElo "2314"]
[TimeControl "180+1"]
[EndTime "14:08:00 PDT"]
[Termination "Alexei_Gubajdullin won by checkmate"]

1. Nf3 {[%clk 0:02:41.1]} 1... c5 {[%clk 0:03:00]} 2. g3 {[%clk 0:02:41.4]} 2...
g6 {[%clk 0:03:00.4]} 3. Bg2 {[%clk 0:02:41.8]} 3... Bg7 {[%clk 0:03:01.3]} 4.
O-O {[%clk 0:02:41.2]} 4... Nc6 {[%clk 0:03:01.3]} 5. c4 {[%clk 0:02:41.4]} 5...
Nh6 {[%clk 0:03:01.2]} 6. Nc3 {[%clk 0:02:41.5]} 6... Nf5 {[%clk 0:03:01.6]} 7.
e3 {[%clk 0:02:41]} 7... h5 {[%clk 0:03:01.8]} 8. h3 {[%clk 0:02:40.2]} 8... a6
{[%clk 0:03:00.5]} 9. Rb1 {[%clk 0:02:39.7]} 9... Rb8 {[%clk 0:03:00.1]} 10. a3
{[%clk 0:02:39.8]} 10... b5 {[%clk 0:02:59.8]} 11. cxb5 {[%clk 0:02:40.2]} 11...
axb5 {[%clk 0:03:00.7]} 12. b4 {[%clk 0:02:40.5]} 12... cxb4 {[%clk 0:03:00.7]}
13. axb4 {[%clk 0:02:40.2]} 13... e6 {[%clk 0:03:00.4]} 14. d4 {[%clk
0:02:39.6]} 14... d5 {[%clk 0:03:00.3]} 15. Ne1 {[%clk 0:02:37]} 15... Nd6
{[%clk 0:02:59.4]} 16. Nd3 {[%clk 0:02:36.4]} 16... Nc4 {[%clk 0:02:59.7]} 17.
Nc5 {[%clk 0:02:36.5]} 17... O-O {[%clk 0:02:58.8]} 18. Qb3 {[%clk 0:02:35]}
18... Qb6 {[%clk 0:02:57.3]} 19. Rd1 {[%clk 0:02:17.6]} 19... Rd8 {[%clk
0:02:57]} 20. Bb2 {[%clk 0:02:16.3]} 20... Bd7 {[%clk 0:02:32.3]} 21. Ra1 {[%clk
0:00:39.1]} 21... Be8 {[%clk 0:02:30.8]} 22. Ra6 {[%clk 0:00:37.8]} 22... Qc7
{[%clk 0:02:30.6]} 23. Rda1 {[%clk 0:00:37.1]} 23... Rdc8 {[%clk 0:02:21.6]} 24.
Ne2 {[%clk 0:00:37]} 24... Qe7 {[%clk 0:02:10.8]} 25. Nf4 {[%clk 0:00:36.9]}
25... Qf6 {[%clk 0:01:58.3]} 26. Nfd3 {[%clk 0:00:36.7]} 26... Qe7 {[%clk
0:01:49.3]} 27. Bc3 {[%clk 0:00:35]} 27... Qf6 {[%clk 0:01:43.8]} 28. h4 {[%clk
0:00:34.4]} 28... Qe7 {[%clk 0:01:42.8]} 29. Qd1 {[%clk 0:00:33.2]} 29... Qf6
{[%clk 0:01:37.4]} 30. Qe2 {[%clk 0:00:33.2]} 30... Qe7 {[%clk 0:01:34.9]} 31.
Bh3 {[%clk 0:00:33.5]} 31... Kh7 {[%clk 0:01:30.3]} 32. Nf4 {[%clk 0:00:33.3]}
32... Qf6 {[%clk 0:01:24.7]} 33. Qd3 {[%clk 0:00:32.9]} 33... Kg8 {[%clk
0:01:24.3]} 34. e4 {[%clk 0:00:32]} 34... dxe4 {[%clk 0:00:54.8]} 35. Nxe4
{[%clk 0:00:30.9]} 35... Qe7 {[%clk 0:00:43.8]} 36. d5 {[%clk 0:00:29.8]} 36...
Nxb4 {[%clk 0:00:32.4]} 37. Qf3 {[%clk 0:00:20.7]} 37... Ne5 {[%clk 0:00:20.3]}
38. Qe2 {[%clk 0:00:16.5]} 38... Nxd5 {[%clk 0:00:15.7]} 39. Nxd5 {[%clk
0:00:16.1]} 39... exd5 {[%clk 0:00:16.1]} 40. Bxc8 {[%clk 0:00:16.1]} 40... dxe4
{[%clk 0:00:16.3]} 41. Ra8 {[%clk 0:00:12.2]} 41... Nf3+ {[%clk 0:00:15.1]} 42.
Kg2 {[%clk 0:00:12.2]} 42... Rxa8 {[%clk 0:00:14.8]} 43. Rxa8 {[%clk 0:00:11.6]}
43... Bxc3 {[%clk 0:00:15]} 44. Bb7 {[%clk 0:00:11.1]} 44... Kh7 {[%clk
0:00:13.5]} 45. Bxe4 {[%clk 0:00:10.4]} 45... Ne1+ {[%clk 0:00:13.5]} 46. Kf1
{[%clk 0:00:09.9]} 46... Qe6 {[%clk 0:00:13]} 47. Rxe8 {[%clk 0:00:08.1]} 47...
Qh3+ {[%clk 0:00:12.9]} 48. Kg1 {[%clk 0:00:08.1]} 48... Bd4 {[%clk 0:00:10.8]}
49. Bxg6+ {[%clk 0:00:07.7]} 49... Kxg6 {[%clk 0:00:10.2]} 50. Qe4+ {[%clk
0:00:07.6]} 50... f5 {[%clk 0:00:09.4]} 51. Qe6+ {[%clk 0:00:07.1]} 51... Bf6
{[%clk 0:00:08.8]} 52. Rg8+ {[%clk 0:00:07.6]} 52... Kh7 {[%clk 0:00:06.7]} 53.
Qf7+ {[%clk 0:00:07.8]} 53... Kh6 {[%clk 0:00:06.6]} 54. Qg6# {[%clk 0:00:08]}
1-0